bitfinex/quotes_BTCUSD_20250219
["timestamp","ask_amount","ask_price","bid_price","bid_amount"]
[1739939781709,0.32296918,95784.0,95783.0,0.33978541]
[1739939783276,0.17296918,95784.0,95783.0,0.43908541]
[1739939783596,0.156602,95784.0,95783.0,0.43908541]
[1739939784050,0.156602,95784.0,95783.0,0.43208541]
[1739939784277,0.0798,95816.0,95785.0,0.01116]
[1739939784497,0.00069494,95815.0,95796.0,0.023]
[1739939784720,0.208735,95816.0,95798.0,0.023]
[1739939784951,0.156565,95807.0,95799.0,0.00104374]
[1739939785152,0.0008512,95819.0,95798.0,0.023]
[1739939785386,0.156568,95805.0,95798.0,0.02404374]
[1739939785623,0.156565,95807.0,95798.0,0.023]
[1739939785822,0.156566,95806.0,95804.0,0.0213418]
[1739939786722,0.17292879,95806.0,95804.0,0.0213418]
[1739939787147,0.17292879,95806.0,95804.0,0.0283418]
[1739939787361,0.17292879,95806.0,95805.0,0.03136541]
[1739939787567,0.17292879,95806.0,95805.0,0.33278541]
[1739939788532,0.1729726,95806.0,95805.0,0.33278541]
[1739939789805,0.1729726,95806.0,95805.0,0.33978541]
[1739939791567,0.3229726,95806.0,95805.0,0.33978541]
[1739939792691,0.3229726,95806.0,95805.0,0.30142]
[1739939793124,0.3229726,95806.0,95805.0,0.30842]
[1739939793341,0.30660981,95806.0,95805.0,0.30842]
[1739939794231,0.30660981,95806.0,95805.0,0.30142]
[1739939794702,0.30660981,95806.0,95805.0,0.30842]
[1739939796313,0.32297329,95806.0,95805.0,0.30842]
[1739939796957,0.32297329,95806.0,95805.0,0.30142]
[1739939797146,0.32297329,95806.0,95805.0,0.30842]
[1739939797668,0.32297329,95806.0,95805.0,0.30142]
[1739939797888,0.32297329,95806.0,95805.0,0.30842]
[1739939799783,0.32297329,95806.0,95805.0,0.30142]
[1739939800216,0.32297329,95806.0,95805.0,0.30842]
[1739939800440,0.32297329,95806.0,95805.0,0.30142]
[1739939800667,0.32297329,95806.0,95805.0,0.30842]
[1739939802306,0.30660981,95806.0,95805.0,0.30842]
[1739939804019,0.38650981,95806.0,95805.0,0.007]
[1739939805263,0.43340981,95806.0,95805.0,0.007]
[1739939805490,0.44977436,95806.0,95805.0,0.007]
[1739939809561,0.156595,95788.0,95786.0,0.30142]
[1739939809791,0.00069494,95787.0,95786.0,0.30142]
[1739939810229,0.01706143,95787.0,95786.0,0.30142]
[1739939810631,0.16706143,95787.0,95786.0,0.30142]
[1739939811051,0.15,95785.0,95784.0,1e-06]
[1739939811256,0.30662,95773.0,95772.0,0.30142]
[1739939811611,0.30662,95773.0,95772.0,0.32270866]
[1739939812068,0.32298858,95773.0,95772.0,0.02128866]
[1739939812724,0.32298858,95773.0,95772.0,0.02142002]
[1739939813041,0.32298858,95773.0,95772.0,0.00013136]
[1739939813267,0.33192636,95773.0,95772.0,0.00013136]
[1739939813482,0.33292636,95773.0,95772.0,0.00513136]
[1739939816127,0.349296,95773.0,95772.0,0.00513136]
[1739939822413,0.349296,95773.0,95772.0,0.00598236]
[1739939822612,0.348296,95773.0,95772.0,0.00098236]
[1739939822841,0.349296,95773.0,95772.0,0.00798236]
[1739939823050,0.348296,95773.0,95772.0,0.00098236]
[1739939823428,0.349296,95773.0,95772.0,0.00798236]
[1739939823575,0.33292636,95773.0,95772.0,0.00798236]
[1739939824748,0.02630636,95773.0,95772.0,0.00798236]
[1739939824970,0.0270013,95773.0,95772.0,0.00798236]
[1739939825503,0.1836213,95773.0,95772.0,0.00798236]
[1739939825960,0.208819,95777.0,95772.0,0.00798236]
[1739939826393,0.15662,95773.0,95772.0,0.00798236]
[1739939826840,0.33157764,95773.0,95772.0,0.00798236]
[1739939828835,0.306631,95766.0,95765.0,0.0008506]
[1739939829051,0.306631,95766.0,95765.0,4.3e-07]
[1739939829509,0.315471,95766.0,95765.0,4.3e-07]
[1739939829818,0.33184321,95766.0,95765.0,4.3e-07]
[1739939830058,0.33184321,95766.0,95765.0,0.00400043]
[1739939830513,0.33184321,95766.0,95765.0,4.3e-07]
[1739939830723,0.33184321,95766.0,95765.0,0.00400043]
[1739939831951,0.388351,95754.0,95753.0,8e-07]
[1739939832184,0.397191,95754.0,95753.0,8e-07]
[1739939832415,0.156687,95732.0,95729.0,0.30142]
[1739939832616,0.306687,95732.0,95729.0,0.30142]
[1739939832743,0.306687,95732.0,95731.0,0.0214516]
[1739939833181,0.306687,95732.0,95731.0,0.0050816]
[1739939833600,0.306687,95732.0,95731.0,0.00552004]
[1739939833808,0.307687,95732.0,95731.0,0.01052004]
[1739939834220,0.316527,95732.0,95731.0,4e-08]
[1739939834443,0.362327,95732.0,95731.0,4e-08]
[1739939834888,0.15884,95722.0,95721.0,5e-07]
[1739939835092,0.30672,95712.0,95703.0,7e-05]
[1739939835232,0.30672,95712.0,95708.0,0.05672]
[1739939836265,0.32409956,95712.0,95711.0,0.0014]
[1739939836479,0.3492752,95712.0,95711.0,0.0014]
[1739939839589,0.3482752,95712.0,95711.0,0.0004]
[1739939840436,0.3492752,95712.0,95711.0,0.0004]
[1739939843525,0.33289564,95712.0,95711.0,0.0004]
[1739939845270,0.33289564,95712.0,95711.0,0.0012516]
[1739939846511,0.34927623,95712.0,95711.0,0.0012516]
[1739939853721,0.33289564,95712.0,95711.0,0.0012516]
[1739939856725,0.34927639,95712.0,95711.0,0.0012516]
[1739939857202,0.34927639,95712.0,95703.0,7e-05]
[1739939857203,0.306726,95708.0,95703.0,7e-05]
[1739939858246,0.306733,95704.0,95703.0,7e-05]
[1739939858503,0.315573,95704.0,95703.0,7e-05]
[1739939859951,0.316573,95704.0,95703.0,7e-05]
[1739939860415,0.315573,95704.0,95703.0,7e-05]
[1739939861469,0.316573,95704.0,95703.0,7e-05]
[1739939865477,0.316613,95704.0,95703.0,7e-05]
[1739939866093,0.316613,95704.0,95703.0,1e-08]
[1739939866323,0.32415426,95704.0,95703.0,1e-08]
[1739939868705,0.32415426,95704.0,95703.0,0.00042581]
[1739939870599,0.32415426,95704.0,95703.0,0.0004258]
[1739939870805,0.156757,95689.0,95688.0,0.0008512]
[1739939871026,0.306757,95689.0,95688.0,0.0008512]
[1739939871240,0.306757,95689.0,95688.0,0.03355019]
[1739939871481,0.32313888,95689.0,95688.0,0.0008512]
[1739939872124,0.32357659,95689.0,95688.0,0.0008512]
[1739939872671,0.32457659,95689.0,95688.0,0.0008512]
[1739939873252,0.30819471,95689.0,95688.0,0.0008512]
[1739939873870,0.30819471,95689.0,95688.0,0.11674175]
[1739939875607,0.30819471,95689.0,95688.0,0.0840512]
[1739939876281,0.30819471,95689.0,95688.0,0.0008512]
[1739939876729,0.32457693,95689.0,95688.0,0.0008512]
[1739939876946,0.32461693,95689.0,95688.0,0.0008512]
[1739939877637,0.32361693,95689.0,95688.0,0.1297512]
[1739939877865,0.01685993,95689.0,95688.0,0.1297512]
[1739939878057,0.17461693,95689.0,95688.0,0.1297512]
[1739939878294,0.17361693,95689.0,95688.0,0.1297512]
[1739939878526,0.17461693,95689.0,95688.0,0.1297512]
[1739939878742,0.17361693,95689.0,95688.0,0.1297512]
[1739939879183,0.17461693,95689.0,95688.0,0.1297512]
[1739939880997,0.32361693,95689.0,95688.0,0.1297512]
[1739939881192,0.32461693,95689.0,95688.0,0.1297512]
[1739939882309,0.32461693,95689.0,95688.0,0.1527512]
[1739939883179,0.30823471,95689.0,95688.0,0.1527512]
[1739939884065,0.30823471,95689.0,95688.0,0.1297512]
[1739939884284,0.30823471,95689.0,95688.0,0.0008512]
[1739939884498,0.30723471,95689.0,95688.0,0.0008512]
[1739939884947,0.30823471,95689.0,95688.0,0.0008512]
[1739939885175,0.30823471,95689.0,95674.0,0.0757]
[1739939885176,0.156777,95677.0,95670.0,0.30142]
[1739939885415,0.306777,95677.0,95670.0,0.30142]
[1739939886298,0.32316119,95677.0,95671.0,0.02174603]
[1739939886532,0.32316119,95677.0,95672.0,0.023]
[1739939887469,0.32416119,95677.0,95676.0,0.0078512]
[1739939888402,0.32316119,95677.0,95676.0,0.0008512]
[1739939888557,0.32316119,95677.0,95676.0,0.0078512]
[1739939888837,0.32416119,95677.0,95676.0,0.0078512]
[1739939893244,0.307777,95677.0,95676.0,0.0078512]
[1739939896263,0.32416098,95677.0,95676.0,0.0078512]
[1739939903248,0.307777,95677.0,95676.0,0.0078512]
[1739939906365,0.32416105,95677.0,95676.0,0.0078512]
[1739939907997,0.32316105,95677.0,95676.0,0.0008512]
[1739939908277,0.32416105,95677.0,95676.0,0.0038512]
[1739939911512,0.32416105,95677.0,95676.0,0.0800512]
[1739939912339,0.32416105,95677.0,95676.0,0.0038512]
[1739939913358,0.307777,95677.0,95676.0,0.0038512]
[1739939914010,0.001,95677.0,95676.0,0.0038512]
[1739939914232,0.157777,95677.0,95676.0,0.0038512]
[1739939916363,0.32416104,95677.0,95676.0,0.0268512]
[1739939923225,0.307777,95677.0,95676.0,0.0268512]
[1739939923883,0.307777,95677.0,95676.0,0.0735512]
[1739939924099,0.157777,95677.0,95676.0,0.1497512]
[1739939924535,0.001,95677.0,95676.0,0.1824674]
[1739939924987,0.15,95683.0,95677.0,0.023]
[1739939925208,0.156772,95680.0,95679.0,0.023]
[1739939925424,0.15,95683.0,95679.0,0.023]
[1739939925652,0.15,95683.0,95679.0,0.05676]
[1739939925867,0.156769,95682.0,95681.0,0.023]
[1739939927415,0.156769,95682.0,95681.0,0.03]
[1739939929246,0.156769,95682.0,95681.0,0.023]
[1739939929434,0.157769,95682.0,95681.0,0.03]
[1739939931616,0.157769,95682.0,95681.0,0.33142]
[1739939936507,0.17415222,95682.0,95681.0,0.33142]
[1739939936773,0.32415222,95682.0,95681.0,0.33142]
[1739939941962,0.32415222,95682.0,95681.0,0.40742]
[1739939943154,0.307769,95682.0,95681.0,0.40742]
[1739939943768,0.307769,95682.0,95681.0,0.33142]
[1739939943987,0.307769,95682.0,95681.0,0.30842]
[1739939945411,0.386469,95682.0,95681.0,0.30842]
[1739939946025,0.307769,95682.0,95681.0,0.30842]
[1739939946233,0.32415284,95682.0,95681.0,0.30842]
[1739939946748,0.32415284,95682.0,95681.0,0.30142]
[1739939946749,0.32315284,95682.0,95681.0,0.30142]
[1739939947202,0.32315284,95682.0,95681.0,0.30542]
[1739939947899,0.32315284,95682.0,95681.0,0.30142]
[1739939948378,0.32315284,95682.0,95681.0,0.30542]
[1739939949490,0.32315284,95682.0,95681.0,0.004]
[1739939953364,0.306769,95682.0,95681.0,0.004]
[1739939954238,0.30762,95682.0,95681.0,0.004]
[1739939956412,0.32400383,95682.0,95681.0,0.004]
[1739939957824,0.17400383,95682.0,95681.0,0.0738]
[1739939958050,0.32400383,95682.0,95681.0,0.1495]
[1739939959441,0.32400383,95682.0,95681.0,0.1407]
[1739939960225,0.32400383,95682.0,95681.0,0.1457]
[1739939960441,0.31771627,95682.0,95681.0,0.1457]
[1739939961286,0.31771627,95682.0,95681.0,0.44712]
[1739939963433,0.306769,95682.0,95681.0,0.44712]
[1739939966390,0.306769,95682.0,95681.0,0.4475455]
[1739939966616,0.32400371,95682.0,95681.0,0.3298455]
[1739939966983,0.32400371,95682.0,95681.0,0.3248455]
[1739939967228,0.32400371,95682.0,95681.0,0.3058455]
[1739939967632,0.32400371,95682.0,95681.0,0.3018455]
[1739939968349,0.32400371,95682.0,95681.0,0.3068455]
[1739939969755,0.32400371,95682.0,95681.0,0.3018455]
[1739939969981,0.32400371,95682.0,95681.0,0.3058455]
[1739939970188,0.01723471,95682.0,95681.0,0.3018455]
[1739939970605,0.01723471,95682.0,95681.0,0.3058455]
[1739939970606,0.17400371,95682.0,95681.0,0.3058455]
[1739939970840,0.17400371,95682.0,95681.0,0.3018455]
[1739939971047,0.17400371,95682.0,95681.0,0.3058455]
[1739939971397,0.17400371,95682.0,95681.0,0.3018455]
[1739939971598,0.17400371,95682.0,95681.0,0.3048455]
[1739939973205,0.15762,95682.0,95681.0,0.3048455]
[1739939974068,0.30762,95682.0,95681.0,0.3018455]
[1739939974284,0.30762,95682.0,95681.0,0.3048455]
[1739939975979,0.30762,95682.0,95681.0,0.3018455]
[1739939976201,0.32400331,95682.0,95681.0,0.3018455]
[1739939976374,0.32400331,95682.0,95681.0,0.3058455]
[1739939979297,0.32400331,95682.0,95681.0,0.0044255]
[1739939982483,0.32404331,95682.0,95681.0,0.0044255]
[1739939983286,0.30766,95682.0,95681.0,0.0044255]
[1739939986290,0.32404393,95682.0,95681.0,0.0044255]
[1739939989771,0.33288393,95682.0,95681.0,0.0044255]
[1739939991255,0.33288393,95682.0,95677.0,1e-08]
[1739939991256,0.15,95681.0,95677.0,1e-08]
[1739939991451,0.306785,95672.0,95671.0,0.00036001]
[1739939992300,0.32316969,95672.0,95671.0,0.00036001]
[1739939992754,0.32316969,95672.0,95671.0,0.00636001]
[1739939993409,0.306785,95672.0,95671.0,0.00636001]
[1739939994034,0.315625,95672.0,95671.0,0.00636001]
[1739939994239,0.394325,95672.0,95671.0,0.00636001]
[1739939994916,0.315625,95672.0,95671.0,0.00636001]
[1739939995561,0.315625,95672.0,95671.0,0.00036001]
[1739939995733,0.315625,95672.0,95671.0,0.00136001]
[1739939996060,0.315625,95672.0,95671.0,0.00036001]
[1739939996306,0.33201068,95672.0,95671.0,0.00036001]
[1739939996539,0.33201068,95672.0,95671.0,0.00136001]
[1739939996660,0.33201068,95672.0,95671.0,0.00036001]
[1739939997931,0.33201068,95672.0,95671.0,0.00136001]
[1739939998148,0.33201068,95672.0,95671.0,0.00036001]
[1739939998578,0.33201068,95672.0,95671.0,0.00136001]
[1739939999811,0.306788,95670.0,95669.0,0.0008512]
[1739940000285,0.24229085,95672.0,95661.0,0.0134912]
[1739940000286,0.306802,95662.0,95661.0,0.0134912]
[1739940000730,0.315642,95662.0,95661.0,0.0134912]
[1739940001175,0.33202889,95662.0,95661.0,0.0134912]
[1739940002323,0.33202889,95662.0,95661.0,0.0174912]
[1739940003176,0.315642,95662.0,95661.0,0.0174912]
[1739940004531,0.31242884,95662.0,95661.0,0.0174912]
[1739940004738,0.30358884,95662.0,95661.0,0.0174912]
[1739940005759,0.30358884,95662.0,95661.0,0.0984912]
[1739940006583,0.30358884,95662.0,95661.0,0.1214912]
[1739940007635,0.31997548,95662.0,95661.0,0.1174912]
[1739940007844,0.32097548,95662.0,95661.0,0.1234912]
[1739940008247,0.31997548,95662.0,95661.0,0.1174912]
[1739940008452,0.32097548,95662.0,95661.0,0.1234912]
[1739940011308,0.01738664,95662.0,95661.0,0.1234912]
[1739940011514,0.17418864,95662.0,95661.0,0.1234912]
[1739940012021,0.17418864,95662.0,95661.0,0.0194912]
[1739940012254,0.18302864,95662.0,95661.0,0.0194912]
[1739940012482,0.18302864,95662.0,95652.0,0.30142]
[1739940012483,0.02622664,95662.0,95652.0,0.30142]
[1739940012724,0.00884,95652.0,95637.0,0.30142]
[1739940012971,0.156834,95642.0,95637.0,0.30142]
[1739940014332,0.19158038,95642.0,95641.0,0.10085293]
[1739940014576,0.19158038,95642.0,95641.0,0.007]
[1739940015017,0.03374638,95642.0,95637.0,0.30142]
[1739940015247,0.156841,95638.0,95637.0,0.30142]
[1739940017464,0.157841,95638.0,95637.0,0.30242]
[1739940017907,0.157841,95638.0,95637.0,0.001]
[1739940020277,0.174231,95638.0,95637.0,0.001]
[1739940022935,0.324231,95638.0,95637.0,0.001]
[1739940023137,0.307841,95638.0,95637.0,0.001]
[1739940024578,0.307841,95638.0,95637.0,0.0014256]
[1739940026212,0.32423234,95638.0,95637.0,0.0014256]
[1739940032586,0.16739134,95638.0,95637.0,0.0244256]
[1739940032807,0.16739134,95638.0,95637.0,0.4051456]
[1739940033265,0.15859134,95638.0,95637.0,0.4051456]
[1739940033474,0.1422,95638.0,95637.0,0.4051456]
[1739940036517,0.156839,95639.0,95638.0,0.023]
[1739940036947,0.17322984,95639.0,95638.0,0.023]
[1739940038474,0.17422984,95639.0,95638.0,0.029]
[1739940038672,0.17422984,95639.0,95638.0,0.33042]
[1739940043291,0.307839,95639.0,95638.0,0.33042]
[1739940045347,0.307839,95639.0,95638.0,0.30742]
[1739940045786,0.151,95639.0,95638.0,0.30742]
[1739940046002,0.001,95639.0,95638.0,0.30742]
[1739940046413,0.23401938,95642.0,95638.0,0.30742]
[1739940046641,0.02490638,95642.0,95638.0,0.30742]
[1739940046880,0.01639049,95639.0,95638.0,0.46426]
[1739940047097,0.01639049,95639.0,95638.0,0.51006]
[1739940047318,0.01639049,95639.0,95638.0,0.60886]
[1739940047724,0.01639049,95639.0,95638.0,0.61386]
[1739940047922,0.01639049,95639.0,95638.0,1.28822365]
[1739940048182,0.00043744,95642.0,95641.0,0.176836]
[1739940048400,0.00043744,95642.0,95641.0,0.42333965]
[1739940048615,0.15,95681.0,95643.0,0.045]
[1739940048827,0.209059,95667.0,95645.0,0.076]
[1739940049046,0.02138271,95667.0,95648.0,0.023]
[1739940049270,0.156813,95656.0,95649.0,0.00104532]
[1739940049514,0.156813,95656.0,95651.0,0.023]
[1739940049720,0.15,95670.0,95651.0,0.0803]
[1739940049956,0.01638744,95655.0,95653.0,0.023]
[1739940050412,0.15,95670.0,95652.0,0.02404533]
[1739940050640,0.01638745,95655.0,95652.0,0.02404533]
[1739940050843,0.156811,95656.0,95652.0,0.023]
[1739940051288,0.01638748,95655.0,95652.0,0.023]
[1739940051488,0.01638748,95655.0,95653.0,0.007]
[1739940051811,0.01638748,95655.0,95652.0,0.023]
[1739940052049,0.01638748,95655.0,95654.0,0.04425661]
[1739940053212,0.156805,95660.0,95655.0,0.023]
[1739940053418,0.156805,95660.0,95657.0,0.023]
[1739940053630,0.156806,95659.0,95657.0,0.023]
[1739940053832,0.156806,95659.0,95658.0,0.023]
[1739940055246,0.156806,95659.0,95658.0,0.029]
[1739940056009,0.156803,95661.0,95659.0,0.023]
[1739940056201,0.156805,95660.0,95659.0,0.023]
[1739940056629,0.01638745,95661.0,95657.0,0.023]
[1739940056835,0.01638745,95661.0,95660.0,0.0983]
[1739940057054,0.156797,95665.0,95660.0,0.0983]
[1739940058287,0.209058,95667.0,95660.0,0.0983]
[1739940058496,0.156795,95666.0,95660.0,0.0983]
[1739940058702,0.000891,95682.0,95662.0,0.023]
[1739940058907,0.000891,95682.0,95667.0,0.023]
[1739940059145,0.156783,95674.0,95667.0,0.02404517]
[1739940059356,0.156782,95674.0,95667.0,0.023]
[1739940060175,0.15,95675.0,95667.0,0.023]
[1739940060322,0.156782,95674.0,95669.0,0.023]
[1739940060732,0.0208185,95675.0,95668.0,0.023]
[1739940060933,0.156785,95672.0,95668.0,0.023]
[1739940061137,0.156785,95672.0,95666.0,0.023]
[1739940061402,0.209038,95676.0,95668.0,0.023]
[1739940061523,0.15,95675.0,95668.0,0.023]
[1739940061732,0.15,95677.0,95670.0,0.023]
[1739940061947,0.156784,95673.0,95664.0,0.02404518]
[1739940062165,0.156784,95673.0,95669.0,0.023]
[1739940062793,0.156784,95673.0,95672.0,0.04378234]
[1739940063207,0.306784,95673.0,95672.0,0.04378234]
[1739940064702,0.306784,95673.0,95672.0,0.04878234]
[1739940065379,0.306784,95673.0,95672.0,0.37338234]
[1739940066281,0.32316923,95673.0,95672.0,0.37338234]
[1739940072183,0.32402003,95673.0,95672.0,0.37338234]
[1739940073171,0.3076348,95673.0,95672.0,0.37338234]
[1739940073382,0.3076348,95673.0,95672.0,0.35038234]
[1739940073586,0.3076348,95673.0,95672.0,0.3296]
[1739940074785,0.0008508,95673.0,95672.0,0.3296]
[1739940074987,0.1576348,95673.0,95672.0,0.3296]
[1739940077688,0.17402108,95673.0,95672.0,0.3296]
[1739940082765,0.17402108,95673.0,95672.0,0.3526]
[1739940082994,0.32402108,95673.0,95672.0,0.3526]
[1739940083434,0.3076348,95673.0,95672.0,0.3526]
[1739940084165,0.3076348,95673.0,95672.0,0.3530253]
[1739940086359,0.32401995,95673.0,95672.0,0.3530253]
[1739940087480,0.01723595,95673.0,95672.0,0.3530253]
[1739940090044,0.16723595,95673.0,95672.0,0.3530253]
[1739940091107,0.32401995,95673.0,95672.0,0.3530253]
[1739940091906,0.3076348,95673.0,95672.0,0.3530253]
[1739940093115,0.23043265,95676.0,95673.0,0.023]
[1739940093297,0.156782,95674.0,95673.0,0.023]
[1739940093912,0.156782,95674.0,95673.0,0.0142]
[1739940094133,0.156784,95673.0,95672.0,0.3250253]
[1739940095683,0.1576346,95673.0,95672.0,0.3250253]
[1739940095904,0.1576346,95673.0,95672.0,0.3480253]
[1739940097112,0.0008506,95673.0,95672.0,0.3530253]
[1739940097350,0.1576346,95673.0,95672.0,0.3480253]
[1739940098043,0.0008506,95673.0,95672.0,0.3250253]
[1739940098273,0.0008506,95673.0,95672.0,0.3300253]
[1739940099716,0.1576346,95673.0,95672.0,0.3300253]
[1739940101641,0.0008506,95673.0,95672.0,0.3300253]
[1739940101868,0.1576346,95673.0,95672.0,0.3300253]
[1739940102053,0.32401947,95673.0,95672.0,0.3300253]
[1739940103337,0.3076346,95673.0,95672.0,0.3300253]
[1739940106335,0.32401943,95673.0,95672.0,0.3300253]
[1739940108403,0.05506453,95673.0,95672.0,0.3300253]
[1739940108636,0.01638483,95673.0,95672.0,0.3300253]
[1739940109255,0.17316883,95673.0,95672.0,0.3300253]
[1739940110119,0.01638483,95673.0,95672.0,0.3300253]
[1739940110326,0.17316883,95673.0,95672.0,0.3300253]
[1739940111907,0.01638483,95673.0,95672.0,0.3300253]
[1739940113132,0.156784,95673.0,95672.0,0.3300253]
[1739940113347,0.02139365,95676.0,95672.0,0.3300253]
[1739940113547,0.156783,95674.0,95673.0,0.00104511]
[1739940113727,0.156783,95674.0,95672.0,0.3300253]
[1739940113928,0.15678,95676.0,95672.0,0.3300253]
[1739940114132,0.18313537,95676.0,95672.0,0.3300253]
[1739940114448,0.156781,95675.0,95672.0,0.3300253]
[1739940114662,0.15678,95675.0,95672.0,0.3300253]
[1739940114863,0.15678,95675.0,95672.0,0.3250253]
[1739940115055,0.209037,95677.0,95672.0,0.3250253]
[1739940115417,0.15678,95676.0,95672.0,0.3250253]
[1739940115863,0.15678,95676.0,95673.0,0.005]
[1739940116080,0.156779,95676.0,95673.0,0.005]
[1739940116270,0.23578671,95676.0,95672.0,0.3250253]
[1739940116398,0.02674671,95676.0,95672.0,0.3290253]
[1739940116594,0.15,95677.0,95672.0,0.3290253]
[1739940116850,0.156771,95681.0,95673.0,0.209045]
[1739940117053,0.15,95679.0,95674.0,0.156782]
[1739940117256,0.15,95679.0,95672.0,0.3250253]
[1739940117517,0.306774,95679.0,95673.0,0.15782712]
[1739940117761,0.156779,95676.0,95672.0,0.3290253]
[1739940117930,0.156777,95677.0,95672.0,0.3290253]
[1739940118290,0.026374,95677.0,95672.0,0.3290253]
[1739940118511,0.156784,95673.0,95672.0,0.3290253]
[1739940118963,0.156784,95673.0,95672.0,0.3250253]
[1739940119843,0.156784,95673.0,95672.0,0.3300253]
[1739940122403,0.156784,95673.0,95672.0,0.3250253]
[1739940122846,0.156784,95673.0,95672.0,0.3320253]
[1739940129790,0.15,95674.0,95672.0,0.3320253]
[1739940129979,0.156784,95673.0,95672.0,0.3320253]
[1739940130594,0.156784,95673.0,95672.0,0.3250253]
[1739940130809,0.156784,95673.0,95672.0,0.3320253]
[1739940131734,0.0008506,95676.0,95672.0,0.3320253]
[1739940131991,0.01723577,95673.0,95672.0,0.3320253]
[1739940132755,0.17401977,95673.0,95672.0,0.3250253]
[1739940132948,0.17401977,95673.0,95672.0,0.3320253]
[1739940135467,0.1576346,95673.0,95672.0,0.3320253]
[1739940137109,0.0008506,95673.0,95672.0,0.3320253]
[1739940138443,0.017235,95673.0,95672.0,0.3320253]
[1739940139270,0.174019,95673.0,95672.0,0.3320253]
[1739940139510,0.174019,95673.0,95672.0,0.3250253]
[1739940139812,0.174019,95673.0,95672.0,0.3320253]
[1739940140223,0.017235,95673.0,95672.0,0.3320253]
[1739940141312,0.174019,95673.0,95672.0,0.3320253]
[1739940142064,0.332859,95673.0,95672.0,0.3320253]
[1739940142253,0.415559,95673.0,95672.0,0.3320253]
[1739940142580,0.415559,95673.0,95672.0,0.0074253]
[1739940143033,0.3068,95663.0,95662.0,0.3246]
[1739940143261,0.31564,95663.0,95662.0,0.38136]
[1739940143479,0.39874,95663.0,95662.0,0.38136]
[1739940143708,0.39874,95663.0,95662.0,0.3246]
[1739940144413,0.39874,95663.0,95662.0,0.3286]
[1739940145647,0.39874,95663.0,95662.0,0.3246]
[1739940146102,0.39874,95663.0,95662.0,0.3286]
[1739940146587,0.09194,95663.0,95662.0,0.3286]
[1739940146827,0.24874,95663.0,95662.0,0.3286]
[1739940148190,0.24874,95663.0,95634.0,0.09385293]
[1739940148191,0.0479,95662.0,95648.0,0.3246]
[1739940148368,0.156823,95649.0,95648.0,0.3246]
[1739940149749,0.156823,95649.0,95648.0,0.3316]
[1739940150174,0.165663,95649.0,95648.0,0.3316]
[1739940150371,0.165663,95649.0,95648.0,0.3246]
[1739940150827,0.20909,95653.0,95648.0,0.3306]
[1739940151120,0.156823,95649.0,95648.0,0.3306]
[1739940151618,0.156823,95649.0,95648.0,0.006]
[1739940152017,0.306823,95649.0,95648.0,0.006]
[1739940154907,0.306823,95649.0,95648.0,0.0064253]
[1739940157987,0.209094,95651.0,95648.0,0.0064253]
[1739940158320,0.156823,95649.0,95648.0,0.0064253]
[1739940159209,0.156823,95649.0,95648.0,0.0004253]
[1739940159668,0.156823,95649.0,95648.0,0.0054253]
[1739940159904,0.156823,95649.0,95648.0,0.0004253]
[1739940160262,0.156823,95649.0,95648.0,0.0064253]
[1739940161079,0.156823,95649.0,95648.0,0.0074253]
[1739940162531,0.306823,95649.0,95648.0,0.0074253]
[1739940162779,0.156838,95640.0,95639.0,0.3246]
[1739940164072,0.1568817,95640.0,95639.0,0.3246]
[1739940164289,0.1568817,95640.0,95639.0,0.3316]
[1739940164290,0.3068817,95640.0,95639.0,0.3316]
[1739940165659,0.3068817,95640.0,95639.0,0.3246]
[1739940165890,0.3068817,95640.0,95639.0,0.3286]
[1739940166112,0.3068817,95640.0,95639.0,0.3246]
[1739940166344,0.3068817,95640.0,95639.0,0.3266]
[1739940166597,0.3068817,95640.0,95639.0,0.0024254]
[1739940186931,0.3068817,95640.0,95639.0,0.0777254]
[1739940188417,0.3068817,95640.0,95639.0,0.0024254]
[1739940190173,0.3068817,95640.0,95639.0,0.0004254]
[1739940190435,0.3068817,95640.0,95639.0,0.0044254]
[1739940192478,0.3068817,95640.0,95639.0,0.0004254]
[1739940192921,0.3068817,95640.0,95639.0,0.0044254]
[1739940198041,0.209113,95643.0,95639.0,0.0044254]
[1739940198280,0.156838,95640.0,95639.0,0.0044254]
[1739940199017,0.156838,95640.0,95639.0,0.0004254]
[1739940199459,0.156838,95640.0,95639.0,0.0034254]
[1739940199652,0.156838,95640.0,95639.0,0.0004254]
[1739940199771,0.156838,95640.0,95639.0,0.0044254]
[1739940201733,0.157689,95640.0,95639.0,0.0044254]
[1739940209527,0.384489,95640.0,95639.0,0.0044254]
[1739940209738,0.306839,95639.0,95638.0,0.3250255]
[1739940211078,0.306839,95639.0,95638.0,0.0004255]
[1739940213268,0.306851,95632.0,95622.0,0.02095151]
[1739940214735,0.306851,95632.0,95617.0,0.3246]
[1739940215458,0.306851,95632.0,95621.0,0.02068109]
[1739940215666,0.306851,95632.0,95631.0,0.0024]
[1739940222579,0.306851,95632.0,95631.0,0.0004]
[1739940223477,0.306851,95632.0,95631.0,0.0014]
[1739940225870,0.306851,95632.0,95631.0,0.0018255]
[1739940231943,0.306851,95632.0,95631.0,0.0008255]
[1739940232437,0.306851,95632.0,95631.0,0.0018255]
[1739940234213,0.15,95633.0,95631.0,0.0018255]
[1739940234890,0.156851,95632.0,95631.0,0.0018255]
[1739940235267,0.156851,95632.0,95631.0,0.0008255]
[1739940236098,0.156851,95632.0,95631.0,0.0018255]
[1739940236320,0.306851,95632.0,95631.0,0.0018255]
[1739940239530,0.209131,95634.0,95631.0,0.0018255]
[1739940239904,0.156851,95632.0,95631.0,0.0018255]
[1739940241388,0.156851,95632.0,95631.0,0.0008255]
[1739940242117,0.306874,95618.0,95617.0,0.4042]
[1739940242348,0.306877,95616.0,95610.0,0.0205939]
[1739940242560,0.306877,95616.0,95615.0,0.00128864]
[1739940245493,0.3288306,95616.0,95615.0,0.00128864]
[1739940245718,0.3278306,95616.0,95615.0,0.00128864]
[1739940255738,0.3288306,95616.0,95615.0,0.00128864]
[1739940259055,0.32788933,95616.0,95615.0,0.00128864]
[1739940259279,0.15689,95608.0,95604.0,0.3246]
[1739940259497,0.15689,95608.0,95600.0,0.0004]
[1739940259702,0.38239,95608.0,95600.0,0.0004]
[1739940259945,0.15,95607.0,95591.0,0.0004]
[1739940260156,0.156915,95593.0,95592.0,2.6e-05]